bitfinex/quotes_BTCUSD_20250512
["timestamp","ask_amount","ask_price","bid_price","bid_amount"]
[1747087111694,1.64509857,102650.0,102640.0,0.019]
[1747087112156,1.04509857,102650.0,102640.0,0.019]
[1747087112379,1.04609857,102650.0,102640.0,0.019]
[1747087112567,0.66295436,102620.0,102610.0,9.171e-05]
[1747087112761,0.97872866,102620.0,102610.0,9.171e-05]
[1747087113739,1.27872866,102620.0,102610.0,0.00109171]
[1747087113950,1.29326951,102620.0,102610.0,0.00109171]
[1747087114929,1.55755545,102620.0,102610.0,0.00109171]
[1747087115836,1.52122951,102620.0,102610.0,9.171e-05]
[1747087116085,1.53422951,102620.0,102610.0,0.00109171]
[1747087116255,1.53422951,102620.0,102610.0,0.00209171]
[1747087116519,1.54822951,102620.0,102610.0,0.00209171]
[1747087116731,1.56275129,102620.0,102610.0,0.00209171]
[1747087117881,1.78703723,102620.0,102610.0,0.00209171]
[1747087118090,1.56275129,102620.0,102610.0,0.00209171]
[1747087118291,1.61275129,102620.0,102610.0,0.00209171]
[1747087119022,1.83703723,102620.0,102610.0,0.00209171]
[1747087119235,2.25819723,102620.0,102610.0,0.00209171]
[1747087119606,1.44465821,102610.0,102600.0,0.001]
[1747087119809,2.02048439,102610.0,102600.0,0.00148861]
[1747087120662,2.03502524,102610.0,102600.0,0.00148861]
[1747087121440,2.71822524,102610.0,102600.0,0.00148861]
[1747087121885,2.71922524,102610.0,102600.0,0.00348861]
[1747087122093,2.72422524,102610.0,102600.0,0.00348861]
[1747087122293,2.72322524,102610.0,102600.0,0.00148861]
[1747087122501,2.72422524,102610.0,102600.0,0.00248861]
[1747087122781,2.74322524,102610.0,102600.0,0.00148861]
[1747087122958,2.75022524,102610.0,102600.0,0.00148861]
[1747087123175,2.74122524,102610.0,102600.0,0.00148861]
[1747087123387,2.75022524,102610.0,102600.0,0.00148861]
[1747087125475,0.03899983,102560.0,102550.0,0.30929552]
[1747087125712,0.23400763,102560.0,102550.0,0.30294676]
[1747087125950,0.23400763,102560.0,102550.0,0.65269762]
[1747087126148,0.2242581,102560.0,102550.0,0.5545292]
[1747087126387,0.20475819,102560.0,102550.0,0.34]
[1747087126612,0.20477805,102550.0,102540.0,0.75886041]
[1747087126839,0.20477805,102550.0,102540.0,0.76866114]
[1747087127586,0.20477805,102550.0,102540.0,0.55450923]
[1747087127810,0.02925297,102550.0,102540.0,0.57401257]
[1747087128024,0.02925297,102550.0,102540.0,0.54475723]
[1747087128229,0.22428025,102550.0,102540.0,0.55450923]
[1747087128434,0.30063235,102550.0,102540.0,0.34004882]
[1747087128647,0.34188157,102550.0,102540.0,4.882e-05]
[1747087128853,0.53176157,102550.0,102540.0,0.00204882]
[1747087129062,0.77258836,102550.0,102540.0,0.00404882]
[1747087129271,0.77258836,102550.0,102540.0,0.00204882]
[1747087129481,0.9075819,102550.0,102540.0,0.00404882]
[1747087130827,0.056,102550.0,102540.0,0.21859875]
[1747087130980,0.06575067,102550.0,102540.0,0.24465037]
[1747087131191,0.06575067,102550.0,102540.0,0.26015037]
[1747087132013,0.07550153,102550.0,102540.0,0.26015037]
[1747087132215,0.07550153,102550.0,102540.0,0.24465037]
[1747087133972,0.06575067,102550.0,102540.0,0.24465037]
[1747087134134,0.07550153,102550.0,102540.0,0.24465037]
[1747087134548,0.06575067,102550.0,102540.0,0.24465037]
[1747087134761,0.07550144,102550.0,102540.0,0.24465037]
[1747087137373,0.29471292,102550.0,102540.0,0.21859875]
[1747087137581,0.63881659,102550.0,102540.0,0.21859884]
[1747087137827,0.73176926,102550.0,102540.0,0.00404882]
[1747087139766,0.91960926,102550.0,102540.0,0.00404882]
[1747087140612,1.23415011,102550.0,102540.0,0.00404882]
[1747087141007,1.83415011,102550.0,102540.0,0.00404882]
[1747087141223,2.17678711,102550.0,102540.0,0.00404882]
[1747087141431,1.91678711,102550.0,102540.0,0.00404882]
[1747087141653,1.91078711,102550.0,102540.0,4.882e-05]
[1747087141858,1.91078711,102550.0,102540.0,0.00204882]
[1747087141859,1.91178711,102550.0,102540.0,0.00204882]
[1747087141974,1.91278711,102550.0,102540.0,0.00304882]
[1747087142176,1.56915011,102550.0,102540.0,0.00204882]
[1747087142604,1.92278711,102550.0,102540.0,0.00204882]
[1747087143210,1.92178711,102550.0,102540.0,4.882e-05]
[1747087143611,1.93278711,102550.0,102540.0,4.882e-05]
[1747087145024,1.59015011,102550.0,102540.0,4.882e-05]
[1747087146060,1.93278711,102550.0,102540.0,4.882e-05]
[1747087146861,1.59015011,102550.0,102540.0,4.882e-05]
[1747087147076,1.93278711,102550.0,102540.0,4.882e-05]
[1747087147444,1.59015011,102550.0,102540.0,4.882e-05]
[1747087147654,1.93278711,102550.0,102540.0,4.882e-05]
[1747087147906,1.59015011,102550.0,102540.0,4.882e-05]
[1747087148653,1.94278711,102550.0,102540.0,4.882e-05]
[1747087149301,1.94778711,102550.0,102540.0,4.882e-05]
[1747087152637,2.05048711,102550.0,102540.0,4.882e-05]
[1747087152816,1.94778711,102550.0,102540.0,4.882e-05]
[1747087153657,1.40731011,102550.0,102540.0,4.882e-05]
[1747087153855,1.76852926,102550.0,102540.0,4.882e-05]
[1747087154148,2.17568926,102550.0,102540.0,4.882e-05]
[1747087154347,2.00692926,102550.0,102540.0,4.882e-05]
[1747087154695,1.04835226,102550.0,102540.0,4.882e-05]
[1747087154905,1.39098926,102550.0,102540.0,4.882e-05]
[1747087155148,1.40553011,102550.0,102540.0,4.882e-05]
[1747087155998,0.37263226,102550.0,102540.0,0.19509465]
[1747087156205,0.18735574,102550.0,102540.0,0.24920266]
[1747087156410,0.19710679,102550.0,102540.0,0.26580266]
[1747087156629,0.20685794,102550.0,102540.0,0.26580266]
[1747087157049,0.17635574,102550.0,102540.0,0.26580266]
[1747087157257,0.18535574,102550.0,102540.0,0.26580266]
[1747087157482,0.07975067,102550.0,102540.0,0.26580266]
[1747087157910,0.05,102550.0,102540.0,0.26580266]
[1747087158107,0.06075048,102550.0,102540.0,0.26780266]
[1747087158422,0.09100316,102550.0,102540.0,0.26880266]
[1747087158628,0.052,102550.0,102540.0,0.26880266]
[1747087158833,0.052,102550.0,102540.0,1.04729396]
[1747087159431,0.052,102550.0,102540.0,1.23521396]
[1747087159635,0.002,102550.0,102540.0,1.33106826]
[1747087159801,0.002,102550.0,102540.0,1.51886826]
[1747087160367,0.002,102550.0,102540.0,1.86150526]
[1747087160621,0.002,102550.0,102540.0,1.88994369]
[1747087160751,0.001,102550.0,102540.0,1.88894369]
[1747087160956,0.01949563,102580.0,102570.0,0.56423594]
[1747087161196,0.00974763,102580.0,102570.0,0.59603527]
[1747087161604,0.08841337,102590.0,102580.0,0.24071408]
[1747087161872,0.09816043,102590.0,102580.0,0.24071408]
[1747087162212,0.10790768,102590.0,102580.0,0.24071408]
[1747087162778,0.10839605,102590.0,102580.0,0.24071408]
[1747087163321,0.02972945,102590.0,102580.0,0.24071408]
[1747087163520,0.00048837,102590.0,102580.0,0.24071408]
[1747087163721,0.00048837,102590.0,102580.0,0.59865108]
[1747087163932,0.02323505,102590.0,102580.0,0.93965108]
[1747087164128,0.03523505,102590.0,102580.0,0.93965108]
[1747087164561,0.02423505,102590.0,102580.0,0.59601408]
[1747087164765,0.03398182,102590.0,102580.0,0.59601408]
[1747087165110,0.09372878,102590.0,102580.0,0.59601408]
[1747087165616,0.08398182,102590.0,102580.0,0.59601408]
[1747087166352,0.06448837,102590.0,102580.0,0.59601408]
[1747087166588,0.06448837,102590.0,102580.0,0.63131649]
[1747087166853,0.07423505,102590.0,102580.0,0.59601408]
[1747087167104,0.06448837,102590.0,102580.0,0.59601408]
[1747087167799,0.07423505,102590.0,102580.0,0.59601408]
[1747087168073,0.07423505,102590.0,102580.0,0.93865108]
[1747087168228,0.06448837,102590.0,102580.0,0.93865108]
[1747087169441,0.07423514,102590.0,102580.0,0.93865108]
[1747087169655,0.07423514,102590.0,102580.0,0.59601408]
[1747087169869,0.0839821,102590.0,102580.0,0.93865108]
[1747087170449,0.0839821,102590.0,102580.0,0.59601408]
[1747087170655,0.07423514,102590.0,102580.0,0.59601408]
[1747087170853,0.0839821,102590.0,102580.0,0.58071408]
[1747087171722,0.09372916,102590.0,102580.0,0.98071408]
[1747087171928,0.0839821,102590.0,102580.0,0.98071408]
[1747087172136,0.0839821,102590.0,102580.0,0.58071408]
[1747087172286,0.07423514,102590.0,102580.0,0.58071408]
[1747087172508,0.0839821,102590.0,102580.0,0.58071408]
[1747087174239,0.09372935,102590.0,102580.0,0.58071408]
[1747087175514,0.1034765,102590.0,102580.0,0.58071408]
[1747087175704,0.10347641,102590.0,102580.0,0.58071408]
[1747087175929,0.10347641,102590.0,102580.0,0.56421408]
[1747087176132,0.09372916,102590.0,102580.0,0.56421408]
[1747087176891,0.10347631,102590.0,102580.0,0.56421408]
[1747087177720,0.29842708,102590.0,102580.0,0.54471816]
[1747087177921,0.30518069,102590.0,102580.0,0.54471816]
[1747087178130,0.29543363,102590.0,102580.0,0.54471816]
[1747087178689,0.29543363,102590.0,102580.0,0.34]
[1747087178888,0.24071446,102580.0,102570.0,0.97398537]
[1747087179188,0.24071446,102580.0,102570.0,0.57398537]
[1747087179615,0.23096645,102580.0,102570.0,0.54473812]
[1747087179824,0.22121825,102580.0,102570.0,0.55448736]
[1747087180027,0.0272482,102580.0,102570.0,0.58298537]
[1747087180224,0.24271427,102580.0,102570.0,0.58298556]
[1747087180665,0.0477445,102580.0,102570.0,0.59273433]
[1747087181251,0.0477445,102580.0,102570.0,0.58298556]
[1747087181448,0.0477445,102580.0,102570.0,0.59273452]
[1747087181659,0.03799554,102580.0,102570.0,0.59273395]
[1747087181867,0.03124364,102580.0,102570.0,0.59273395]
[1747087182512,0.04099193,102580.0,102570.0,0.59273395]
[1747087183931,0.2515617,102580.0,102570.0,0.58298518]
[1747087184132,0.2515617,102580.0,102570.0,0.59273404]
[1747087184368,0.05659193,102580.0,102570.0,0.59273404]
[1747087184580,0.06634032,102580.0,102570.0,0.59273357]
[1747087184947,0.26131094,102580.0,102570.0,0.57323594]
[1747087185153,0.37231092,102580.0,102570.0,0.55373821]
[1747087185356,0.36256282,102580.0,102570.0,0.56348755]
[1747087185571,0.40281453,102580.0,102570.0,0.54398878]
[1747087185811,0.40281453,102580.0,102570.0,0.56348736]
[1747087186639,0.35281453,102580.0,102570.0,0.56348736]
[1747087188794,0.35281453,102580.0,102570.0,0.009]
[1747087189631,0.69545153,102580.0,102570.0,0.009]
[1747087189857,1.00999238,102580.0,102570.0,0.009]
[1747087191262,1.00899238,102580.0,102570.0,0.004]
[1747087191485,1.00899238,102580.0,102570.0,0.005]
[1747087191716,1.01899238,102580.0,102570.0,0.005]
[1747087191926,1.01799238,102580.0,102570.0,0.001]
[1747087192157,1.02899238,102580.0,102570.0,0.002]
[1747087195220,1.07899238,102580.0,102570.0,0.002]
[1747087202243,1.03635538,102580.0,102570.0,0.002]
[1747087202471,0.42105538,102580.0,102570.0,0.002]
[1747087202681,0.89395453,102580.0,102570.0,0.002]
[1747087203489,0.56876094,102580.0,102570.0,0.21648736]
[1747087203689,0.09049592,102580.0,102570.0,0.29732961]
[1747087203899,0.05024421,102580.0,102570.0,0.26758518]
[1747087204300,0.03074782,102580.0,102570.0,0.60758518]
[1747087204474,0.04049592,102580.0,102570.0,0.60758518]
[1747087204720,0.021,102580.0,102570.0,0.95022218]
[1747087204940,0.04049554,102580.0,102570.0,0.60758518]
[1747087205159,0.05024374,102580.0,102570.0,0.60758518]
[1747087205598,0.05999184,102580.0,102570.0,0.60758518]
[1747087205881,0.05999184,102580.0,102570.0,0.59168518]
[1747087206304,0.05999175,102580.0,102570.0,0.58193641]
[1747087206535,0.34652075,102580.0,102570.0,0.342]
[1747087206761,0.36172075,102580.0,102570.0,0.002]
[1747087207017,1.3688986,102580.0,102570.0,0.002]
[1747087219243,2.0515356,102580.0,102570.0,0.002]
[1747087220893,0.21455012,102540.0,102530.0,0.015]
[1747087221136,0.21457085,102530.0,102520.0,0.3714]
[1747087221270,0.31042515,102530.0,102520.0,0.0154]
[1747087221480,0.20483788,102520.0,102510.0,0.0154]
[1747087222129,0.20483788,102520.0,102510.0,0.35544882]
[1747087222354,0.21455895,102520.0,102510.0,0.01544882]
[1747087222565,0.31041325,102520.0,102510.0,4.882e-05]
[1747087222763,0.49977325,102520.0,102510.0,4.882e-05]
[1747087223588,0.50177325,102520.0,102510.0,4.882e-05]
[1747087224198,0.49977325,102520.0,102510.0,4.882e-05]
[1747087224399,0.85851025,102520.0,102510.0,4.882e-05]
[1747087224600,0.87281025,102520.0,102510.0,4.882e-05]
[1747087224811,0.87381025,102520.0,102510.0,4.882e-05]
[1747087225058,0.53117325,102520.0,102510.0,4.882e-05]
[1747087225666,1.06133025,102520.0,102510.0,4.882e-05]
[1747087226435,1.6758711,102520.0,102510.0,4.882e-05]
[1747087227322,1.7258711,102520.0,102510.0,4.882e-05]
[1747087235329,2.1464711,102520.0,102510.0,4.882e-05]
[1747087235600,2.1544711,102520.0,102510.0,4.882e-05]
[1747087235767,1.5544711,102520.0,102510.0,4.882e-05]
[1747087235984,1.5624711,102520.0,102510.0,4.882e-05]
[1747087239626,1.9051081,102520.0,102510.0,4.882e-05]
[1747087239810,1.5624711,102520.0,102510.0,4.882e-05]
[1747087243386,2.2451081,102520.0,102510.0,4.882e-05]
[1747087244354,2.2361081,102520.0,102510.0,4.882e-05]
[1747087246163,2.2491081,102520.0,102510.0,4.882e-05]
[1747087247143,2.3076281,102520.0,102510.0,4.882e-05]
[1747087248410,2.3176281,102520.0,102510.0,4.882e-05]
[1747087249596,2.3176281,102520.0,102450.0,0.19516478]
[1747087249597,0.01951457,102480.0,102450.0,0.19516478]
[1747087249793,0.87189511,102460.0,102450.0,0.0250214]
[1747087250001,0.20497783,102450.0,102440.0,0.0324]
[1747087250219,0.97555213,102450.0,102440.0,0.0324]
[1747087250431,1.33272998,102450.0,102440.0,0.0161]
[1747087250938,1.3327787,102450.0,102440.0,0.0161]
[1747087251271,0.50499785,102440.0,102430.0,0.0162]
[1747087251505,0.94348915,102440.0,102430.0,0.0162]
[1747087251705,0.60085215,102440.0,102430.0,0.0162]
[1747087252047,0.20501786,102430.0,102420.0,0.10488439]
[1747087252257,1.01822916,102430.0,102420.0,0.08948439]
[1747087253116,1.01822916,102430.0,102420.0,0.07328439]
[1747087253746,1.63277001,102430.0,102420.0,0.07328439]
[1747087253956,1.63477001,102430.0,102420.0,0.07328439]
[1747087254358,1.63277001,102430.0,102420.0,0.07328439]
[1747087254562,1.63577001,102430.0,102420.0,0.07328439]
[1747087254990,1.63377001,102430.0,102420.0,0.07328439]
[1747087255186,1.64927001,102430.0,102420.0,0.07328439]
[1747087255394,1.65027001,102430.0,102420.0,0.07328439]
[1747087255960,1.64927001,102430.0,102420.0,0.07328439]
[1747087256216,1.64927001,102430.0,102410.0,0.01553]
[1747087256217,0.50503788,102420.0,102410.0,0.01553]
[1747087256393,0.94352918,102420.0,102410.0,0.01553]
[1747087257386,0.94352918,102420.0,102410.0,0.03163]
[1747087257387,0.65189218,102420.0,102410.0,0.03163]
[1747087257595,1.02673218,102420.0,102410.0,0.03163]
[1747087257810,0.5853343,102420.0,102410.0,0.26165247]
[1747087258015,0.82151058,102420.0,102410.0,0.28118095]
[1747087258424,1.00702208,102420.0,102410.0,0.28118095]
[1747087259333,1.00702208,102420.0,102410.0,0.27141676]
[1747087259554,0.99725913,102420.0,102410.0,0.27141676]
[1747087259772,0.99725913,102420.0,102410.0,0.28118085]
[1747087260750,0.80198477,102420.0,102410.0,0.28118085]
[1747087260986,0.79222106,102420.0,102410.0,0.29094485]
[1747087261215,0.81174839,102420.0,102410.0,0.29094485]
[1747087261837,0.79222106,102420.0,102410.0,0.29094485]
[1747087262314,0.80198468,102420.0,102410.0,0.29094485]
[1747087262553,0.45761754,102420.0,102410.0,0.29094485]
[1747087262801,0.052,102420.0,102410.0,0.63094485]
[1747087263054,0.052,102420.0,102410.0,1.02221749]
[1747087263270,0.002,102420.0,102410.0,1.11807179]
[1747087263910,0.002,102420.0,102410.0,1.06943615]
[1747087264362,1.19016919,102450.0,102440.0,0.23982051]
[1747087264585,1.06191532,102450.0,102440.0,0.25602051]
[1747087264805,0.76191532,102450.0,102440.0,0.25602051]
[1747087265012,0.68324872,102450.0,102440.0,0.25602051]
[1747087265208,4.872e-05,102450.0,102440.0,0.59602051]
[1747087266654,0.01504872,102450.0,102440.0,0.59702051]
[1747087266928,0.00980872,102450.0,102440.0,0.59602051]
[1747087267164,0.00980872,102450.0,102440.0,0.59702051]
[1747087267378,0.01404872,102450.0,102440.0,0.59702051]
[1747087267846,0.02380881,102450.0,102440.0,0.59702051]
[1747087268067,0.03380881,102450.0,102440.0,0.59802051]
[1747087269837,0.05799348,102450.0,102440.0,0.59802051]
[1747087270044,0.03380881,102450.0,102440.0,0.59802051]
[1747087270940,0.04356909,102450.0,102440.0,0.59802051]
[1747087271405,0.02404872,102450.0,102440.0,0.59802051]
[1747087272457,0.02404872,102450.0,102440.0,0.94065751]
[1747087272660,0.02404872,102450.0,102440.0,1.03651181]
[1747087273459,0.02404872,102450.0,102440.0,1.43651181]
[1747087274039,0.02404872,102450.0,102440.0,1.53236611]
[1747087274410,0.02404872,102450.0,102440.0,1.74815767]
[1747087274500,0.02404872,102450.0,102440.0,2.11633552]
[1747087274958,0.02404872,102450.0,102440.0,1.77369852]
[1747087275185,0.01404872,102450.0,102440.0,1.73426696]
[1747087275418,0.01404872,102450.0,102440.0,1.63841266]
[1747087275778,0.01404872,102450.0,102440.0,1.81123181]
[1747087276426,0.00204872,102450.0,102440.0,1.81423181]
[1747087276626,0.00204872,102450.0,102440.0,1.82223181]
[1747087276835,0.00304872,102450.0,102440.0,1.82223181]
[1747087277040,0.00304872,102450.0,102440.0,1.91808611]
[1747087285101,0.00304872,102450.0,102440.0,1.41601181]
[1747087285321,0.00304872,102450.0,102440.0,0.57752051]
[1747087285565,0.08171532,102450.0,102440.0,0.57752051]
[1747087285789,0.08171532,102450.0,102440.0,0.97752051]
[1747087286029,0.09147541,102450.0,102440.0,0.97752051]
[1747087286429,0.11351532,102450.0,102440.0,0.63752051]
[1747087286586,0.11351532,102450.0,102440.0,0.57752051]
[1747087286793,0.10757532,102450.0,102440.0,0.57752051]
[1747087287435,0.09781532,102450.0,102440.0,0.57752051]
[1747087287621,0.00304872,102450.0,102440.0,0.92015751]
[1747087287826,0.00304872,102450.0,102440.0,1.44841181]
[1747087288870,0.00304872,102450.0,102440.0,1.97836881]
[1747087289089,0.00304872,102450.0,102440.0,1.66416337]
[1747087292640,0.00304872,102450.0,102440.0,2.00680037]
[1747087292855,0.00304872,102450.0,102440.0,2.12719552]
[1747087295857,0.00304872,102450.0,102440.0,1.78455852]
[1747087296072,0.00304872,102450.0,102440.0,1.44841181]
[1747087296300,0.00304872,102450.0,102440.0,1.61953181]
[1747087296765,0.00304872,102450.0,102440.0,1.80681181]
[1747087297051,0.00304872,102450.0,102440.0,1.60329181]
[1747087297266,0.00304872,102450.0,102440.0,1.79061181]
[1747087297653,0.00304872,102450.0,102440.0,1.8114977]
[1747087300738,0.00304872,102450.0,102440.0,1.79061181]
[1747087304833,0.00304872,102450.0,102440.0,1.80661181]
[1747087305041,0.00304872,102450.0,102440.0,1.82281181]
[1747087305666,0.0166,102480.0,102470.0,0.54493735]
[1747087305844,0.1110666,102490.0,102480.0,0.22443288]
[1747087306117,0.13057945,102490.0,102480.0,0.22443288]
[1747087306322,0.34523394,102490.0,102480.0,0.21467555]
[1747087306532,0.14033658,102490.0,102480.0,0.22443307]
[1747087306698,0.14033658,102490.0,102480.0,0.2341904]
[1747087306906,0.15009353,102490.0,102480.0,0.2341904]
[1747087307044,0.15985057,102490.0,102480.0,0.2341904]
[1747087308363,0.17485057,102490.0,102480.0,0.2351904]
[1747087308681,0.44633272,102490.0,102480.0,0.001]
[1747087308889,1.09421287,102490.0,102480.0,0.002]
[1747087309736,0.80875372,102490.0,102480.0,0.002]
[1747087310321,1.11945869,102480.0,102470.0,0.00048723]
[1747087310520,1.96330999,102480.0,102470.0,0.00048723]
[1747087311429,1.97630999,102480.0,102470.0,0.00148723]
[1747087311833,1.99130999,102480.0,102470.0,0.00248723]
[1747087312382,1.39130999,102480.0,102470.0,0.00248723]
[1747087312993,0.74388985,102480.0,102470.0,0.20742515]
[1747087313324,0.73413214,102480.0,102470.0,0.1976663]
[1747087313733,0.72437433,102480.0,102470.0,0.00248723]
[1747087314705,0.72437433,102480.0,102470.0,0.1976663]
[1747087314943,0.72437433,102480.0,102470.0,0.20742515]
[1747087315150,1.06701133,102480.0,102470.0,0.00248723]
[1747087316428,0.87973133,102480.0,102470.0,0.00248723]
[1747087323473,0.35957214,102480.0,102470.0,0.20742506]
[1747087323670,0.54705214,102480.0,102470.0,0.20742506]
[1747087323919,0.54705214,102480.0,102470.0,0.22694219]
[1747087324118,0.06301456,102480.0,102470.0,0.58645885]
[1747087324337,0.0825297,102480.0,102470.0,0.58645885]
[1747087324893,0.09228751,102480.0,102470.0,0.58645885]
[1747087325091,0.09228732,102480.0,102470.0,0.58645885]
[1747087325311,0.29369012,102480.0,102470.0,0.34248723]
[1747087325518,0.71266666,102480.0,102470.0,0.00248723]
[1747087326428,1.36984451,102480.0,102470.0,0.00248723]
[1747087326855,1.02720751,102480.0,102470.0,0.00248723]
[1747087327065,1.36984451,102480.0,102470.0,0.00248723]
[1747087327298,1.02720751,102480.0,102470.0,0.00248723]
[1747087329536,1.36984451,102480.0,102470.0,0.00248723]
[1747087329777,1.02720751,102480.0,102470.0,0.00248723]
[1747087329972,1.36984451,102480.0,102470.0,0.00248723]
[1747087330171,1.02720751,102480.0,102470.0,0.00248723]
[1747087330375,1.36984451,102480.0,102470.0,0.00248723]
[1747087332309,1.02720751,102480.0,102470.0,0.00248723]
[1747087332632,1.36984451,102480.0,102470.0,0.00248723]
[1747087332859,1.02720751,102480.0,102470.0,0.00248723]
[1747087333071,1.36984451,102480.0,102470.0,0.00248723]
[1747087334730,1.02720751,102480.0,102470.0,0.00248723]
[1747087336275,0.67002966,102480.0,102470.0,0.00248723]
[1747087337076,1.01266666,102480.0,102470.0,0.00248723]
[1747087345073,1.20014666,102480.0,102470.0,0.00248723]
[1747087348622,1.01266666,102480.0,102470.0,0.00248723]
[1747087348874,0.24267536,102480.0,102470.0,0.00248723]
[1747087349111,0.06703123,102480.0,102470.0,0.22694219]
[1747087349354,0.26219126,102480.0,102470.0,0.22694219]
[1747087349597,0.26219126,102480.0,102470.0,0.22694238]
[1747087349820,0.24267593,102480.0,102470.0,0.20742515]
[1747087350043,1.00270933,102480.0,102470.0,0.00248723]
[1747087350227,0.22452051,102440.0,102430.0,0.0316]
[1747087350497,0.21480074,102420.0,102410.0,0.32547238]
[1747087350712,0.20503769,102420.0,102410.0,0.11447906]
[1747087350930,0.19527436,102420.0,102410.0,0.08881439]
[1747087351137,0.64966566,102420.0,102410.0,0.08881439]
[1747087351347,0.1117543,102420.0,102410.0,0.28410781]
[1747087351589,0.6141417,102430.0,102420.0,0.20503798]
[1747087351810,0.68592812,102430.0,102410.0,0.32193603]
[1747087352017,0.98459261,102420.0,102410.0,0.10135051]
[1747087352455,0.03179048,102430.0,102420.0,0.02929028]
[1747087352672,0.00049048,102430.0,102420.0,0.23432769]
[1747087352904,0.01025257,102430.0,102420.0,0.25022769]
[1747087353121,0.01125257,102430.0,102420.0,0.25022769]
[1747087353524,0.02101485,102430.0,102420.0,0.25022769]
[1747087353917,0.01125257,102430.0,102420.0,0.25022769]
[1747087354185,0.01225257,102430.0,102420.0,0.25122769]
[1747087354351,0.02201485,102430.0,102420.0,0.25122769]
[1747087354552,0.01225257,102430.0,102420.0,0.25122769]
[1747087355363,0.01325257,102430.0,102420.0,0.25222769]
[1747087355778,0.00349048,102430.0,102420.0,0.25222769]
[1747087356011,0.01325248,102430.0,102420.0,0.25222769]
[1747087356232,0.00349048,102430.0,102420.0,0.95046469]
[1747087356485,0.00349048,102430.0,102420.0,1.57707599]
[1747087356723,0.00349048,102430.0,102420.0,0.89180199]
[1747087356936,0.01325238,102430.0,102420.0,0.78034769]
[1747087357144,0.00349048,102430.0,102420.0,0.78034769]
[1747087357352,0.00349048,102430.0,102420.0,1.32999329]
[1747087358432,0.00349048,102430.0,102420.0,1.67263029]
[1747087358861,0.00349048,102430.0,102420.0,1.32999329]
[1747087359076,0.00349048,102430.0,102420.0,1.67263029]
[1747087359271,0.00349048,102430.0,102420.0,1.32999329]
[1747087359842,0.00349048,102430.0,102420.0,1.23413899]
[1747087360875,0.00349048,102430.0,102420.0,1.63413899]
[1747087362074,0.00349048,102430.0,102420.0,1.97677599]
[1747087362616,0.00349048,102430.0,102420.0,1.99131684]
[1747087362872,0.00249048,102430.0,102420.0,1.98931684]
[1747087363112,0.00149048,102430.0,102420.0,1.99431684]
[1747087363319,0.00249048,102430.0,102420.0,1.75353414]
[1747087363531,0.00249048,102430.0,102420.0,1.65767984]
[1747087363942,0.00249048,102430.0,102420.0,2.00031684]
[1747087365865,0.00249048,102430.0,102420.0,2.02962384]
[1747087366504,0.00249048,102430.0,102420.0,1.85250384]
[1747087366861,0.0786666,102470.0,102460.0,0.92321368]
[1747087367089,0.0786666,102470.0,102460.0,0.90711368]
[1747087367277,0.0786666,102470.0,102460.0,0.56447668]
[1747087367501,0.1386423,102470.0,102460.0,0.20495802]
[1747087367716,0.1093666,102470.0,102460.0,0.23423658]
[1747087367943,0.0786666,102470.0,102460.0,0.23423658]
[1747087368166,0.0786666,102470.0,102460.0,0.23438872]
[1747087368370,0.0786666,102470.0,102460.0,0.57438872]
[1747087368574,0.0307,102480.0,102470.0,0.22445477]
[1747087368575,0.0154,102480.0,102470.0,0.22445477]
[1747087368785,0.0154,102480.0,102470.0,0.20493792]
[1747087368786,0.25543288,102480.0,102470.0,0.20493792]
[1747087369028,0.07033351,102470.0,102460.0,0.56462902]
[1747087369171,0.07333351,102470.0,102460.0,0.57438825]
[1747087369393,0.07433351,102470.0,102460.0,0.58038825]
[1747087369593,0.08109236,102470.0,102460.0,0.57438825]
[1747087370604,0.08009236,102470.0,102460.0,0.57438825]
[1747087371031,0.08709236,102470.0,102460.0,0.57438825]
[1747087371697,0.09009236,102470.0,102460.0,0.57438825]
[1747087371929,0.37603565,102470.0,102460.0,0.00015214]
[1747087372166,0.06081761,102470.0,102460.0,0.23438872]
[1747087372383,0.0257,102470.0,102460.0,0.23438872]
[1747087372600,0.04521723,102470.0,102460.0,0.23438872]
[1747087373124,0.04521666,102470.0,102460.0,0.23438872]
[1747087373355,0.01,102470.0,102460.0,0.31258739]
[1747087373824,0.13032479,102470.0,102460.0,0.00015214]
[1747087374058,1.2630742,102470.0,102460.0,0.00015214]
[1747087377802,1.2630742,102470.0,102460.0,0.22462882]
[1747087377803,0.33625819,102470.0,102460.0,0.22462882]
[1747087378008,0.01975809,102470.0,102460.0,0.22462882]
[1747087378219,0.01,102470.0,102460.0,0.22462882]
[1747087378427,0.01,102470.0,102460.0,0.64282912]
[1747087378634,0.01,102470.0,102460.0,0.56462882]
[1747087379219,0.01975819,102470.0,102460.0,0.56462882]
[1747087380074,0.60290538,102470.0,102460.0,0.20511007]
[1747087380305,0.60290538,102470.0,102460.0,0.00015214]
[1747087380306,0.90369779,102470.0,102460.0,0.00015214]
[1747087383158,0.6521506,102470.0,102460.0,0.00015214]
[1747087383336,0.90369779,102470.0,102460.0,0.00015214]
[1747087384392,0.90378367,102470.0,102460.0,0.00015214]
[1747087385573,0.60378367,102470.0,102460.0,0.00015214]
[1747087388015,0.90378367,102470.0,102460.0,0.00015214]
[1747087394942,0.6363506,102470.0,102460.0,0.21486978]
[1747087395181,0.81507213,102470.0,102460.0,0.20511016]
[1747087395398,0.60103337,102470.0,102460.0,0.20511016]
[1747087395617,0.01,102470.0,102460.0,0.29314942]
[1747087395816,0.02951666,102470.0,102460.0,0.26668872]
[1747087396035,0.02951657,102470.0,102460.0,0.25018872]
[1747087396237,0.01975819,102470.0,102460.0,0.25018872]
[1747087396441,0.01975809,102470.0,102460.0,0.25018872]
[1747087396650,0.01,102470.0,102460.0,0.59018872]
[1747087396861,0.01,102470.0,102460.0,1.05003039]
[1747087397222,0.01,102470.0,102460.0,1.05990925]
[1747087397639,0.01,102470.0,102460.0,0.96405495]
[1747087398761,0.003,102470.0,102460.0,0.96405495]
[1747087398963,0.004,102470.0,102460.0,0.97205495]
[1747087399169,0.001,102470.0,102460.0,0.97205495]
[1747087399552,0.002,102470.0,102460.0,0.98105495]
[1747087399926,0.002,102470.0,102460.0,1.38105495]
[1747087400155,0.002,102470.0,102460.0,1.47690925]
[1747087400360,0.002,102470.0,102460.0,1.02368872]
[1747087401809,0.01175809,102470.0,102460.0,1.02368872]
[1747087402777,0.002,102470.0,102460.0,1.02368872]
[1747087403020,0.002,102470.0,102460.0,1.37117609]
[1747087403223,0.002,102470.0,102460.0,1.46703039]
[1747087404409,0.002,102470.0,102460.0,1.66985124]
[1747087407036,0.002,102470.0,102460.0,1.67985124]
[1747087407240,0.002,102470.0,102460.0,1.70914524]
[1747087408559,0.002,102470.0,102460.0,1.97077831]
[1747087409209,0.002,102470.0,102460.0,1.71914524]
[1747087409410,0.002,102470.0,102460.0,1.72014524]
[1747087409564,0.001,102470.0,102460.0,1.71114524]
[1747087409986,0.002,102470.0,102460.0,1.72314524]
[1747087410190,0.001,102470.0,102460.0,1.71514524]
[1747087410484,0.002,102470.0,102460.0,1.72414524]
[1747087412332,0.002,102470.0,102460.0,2.09674524]